[Event "*** Titled Tuesday Blitz"]
[Site "Chess.com"]
[Date "2018.01.02"]
[Round "1"]
[White "Andrejs_Sokolov"]
[Black "korason34"]
[Result "1-0"]
[WhiteElo "2621"]
[BlackElo "2328"]
[TimeControl "180+2"]
[EndTime "13:08:29 PST"]
[Termination "Andrejs_Sokolov won by resignation"]

1. d4 {[%clk 0:03:00.5]} 1... Nf6 {[%clk 0:02:59]} 2. Nf3 {[%clk 0:03:01.5]}
2... e6 {[%clk 0:03:00]} 3. g3 {[%clk 0:03:02.9]} 3... b6 {[%clk 0:02:56.7]} 4.
Bg2 {[%clk 0:03:04.3]} 4... Bb7 {[%clk 0:02:58.3]} 5. O-O {[%clk 0:03:05.8]}
5... c5 {[%clk 0:02:58.2]} 6. c4 {[%clk 0:03:06.1]} 6... cxd4 {[%clk 0:02:57.9]}
7. Qxd4 {[%clk 0:03:07]} 7... Be7 {[%clk 0:02:54.4]} 8. Nc3 {[%clk 0:03:07.2]}
8... O-O {[%clk 0:02:55.5]} 9. Rd1 {[%clk 0:03:06.8]} 9... d6 {[%clk 0:02:55.5]}
10. b3 {[%clk 0:03:06.9]} 10... h6 {[%clk 0:02:53.4]} 11. Ba3 {[%clk 0:03:04.5]}
11... Ne8 {[%clk 0:02:47.7]} 12. Bb2 {[%clk 0:03:03.7]} 12... Nd7 {[%clk
0:02:45.6]} 13. Rac1 {[%clk 0:03:02.3]} 13... Rc8 {[%clk 0:02:43.2]} 14. Qd3
{[%clk 0:02:56.2]} 14... a6 {[%clk 0:02:41.9]} 15. Ne4 {[%clk 0:02:48]} 15...
Qc7 {[%clk 0:02:38.2]} 16. e3 {[%clk 0:02:40.1]} 16... f5 {[%clk 0:02:38.2]} 17.
Nc3 {[%clk 0:02:35.6]} 17... Nef6 {[%clk 0:02:35.8]} 18. Qe2 {[%clk 0:02:26.4]}
18... Rfd8 {[%clk 0:02:34]} 19. Nd4 {[%clk 0:02:27.1]} 19... Nf8 {[%clk
0:02:28.1]} 20. e4 {[%clk 0:02:23.5]} 20... fxe4 {[%clk 0:02:16.3]} 21. Nxe4
{[%clk 0:02:23]} 21... Nxe4 {[%clk 0:02:17.7]} 22. Bxe4 {[%clk 0:02:22.9]} 22...
Bxe4 {[%clk 0:01:42.9]} 23. Qxe4 {[%clk 0:02:22.8]} 23... Qd7 {[%clk 0:01:44.4]}
24. Re1 {[%clk 0:02:11.5]} 24... Bf6 {[%clk 0:01:43.4]} 25. Ba3 {[%clk
0:01:56.8]} 25... b5 {[%clk 0:01:39]} 26. Nxe6 {[%clk 0:01:52.6]} 26... Nxe6
{[%clk 0:01:34.7]} 27. Qxe6+ {[%clk 0:01:53]} 27... Qxe6 {[%clk 0:01:34.9]} 28.
Rxe6 {[%clk 0:01:53.4]} 28... bxc4 {[%clk 0:01:31.7]} 29. Rxc4 {[%clk
0:01:51.6]} 29... Rxc4 {[%clk 0:01:25.1]} 30. bxc4 {[%clk 0:01:52.2]} 30... Be5
{[%clk 0:01:25.8]} 31. f4 {[%clk 0:01:50.1]} 31... Kf7 {[%clk 0:01:25.2]} 32. f5
{[%clk 0:01:46.9]} 32... a5 {[%clk 0:01:05.3]} 33. Kg2 {[%clk 0:01:47.5]} 33...
Rc8 {[%clk 0:01:05.5]} 34. c5 {[%clk 0:01:41.8]} 34... Bd4 {[%clk 0:00:45.9]}
35. cxd6 {[%clk 0:01:40.3]} 35... Rc2+ {[%clk 0:00:45.2]} 36. Kf3 {[%clk
0:01:40.4]} 36... Rxa2 {[%clk 0:00:46]} 37. d7 {[%clk 0:01:25.2]} 37... Rxa3+
{[%clk 0:00:46.3]} 38. Ke4 {[%clk 0:01:26.1]} 38... Bf6 {[%clk 0:00:46.6]} 39.
Rxf6+ {[%clk 0:01:26.1]} 39... Ke7 {[%clk 0:00:47.8]} 40. Rf7+ {[%clk 0:01:25]}
40... Kd8 {[%clk 0:00:47.4]} 41. Rxg7 {[%clk 0:01:26]} 41... Ra2 {[%clk
0:00:48.2]} 42. f6 {[%clk 0:01:24.3]} 42... Re2+ {[%clk 0:00:34.9]} 43. Kd3
{[%clk 0:00:59.6]} 43... Rxh2 {[%clk 0:00:19.8]} 44. f7 {[%clk 0:00:54.6]} 44...
Rf2 {[%clk 0:00:21.2]} 45. Rg8+ {[%clk 0:00:53.8]} 45... Kxd7 {[%clk 0:00:22.1]}
46. f8=Q {[%clk 0:00:53.9]} 46... Rxf8 {[%clk 0:00:23.7]} 47. Rxf8 {[%clk
0:00:54.9]} 47... Ke7 {[%clk 0:00:24.7]} 48. Ra8 {[%clk 0:00:55.5]} 1-0

[Event "*** Titled Tuesday Blitz"]
[Site "Chess.com"]
[Date "2018.01.02"]
[Round "1"]
[White "Korchmar_Vasiliy"]
[Black "Al_Shima"]
[Result "1-0"]
[WhiteElo "2506"]
[BlackElo "2207"]
[TimeControl "180+2"]
[EndTime "13:08:44 PST"]
[Termination "Korchmar_Vasiliy won by resignation"]

1. d4 {[%clk 0:03:00.6]} 1... Nf6 {[%clk 0:03:00.6]} 2. Nf3 {[%clk 0:03:01.6]}
2... e6 {[%clk 0:02:57]} 3. Bf4 {[%clk 0:03:03.1]} 3... b6 {[%clk 0:02:56.7]} 4.
e3 {[%clk 0:03:03.8]} 4... Bb7 {[%clk 0:02:57.8]} 5. Nbd2 {[%clk 0:03:05]} 5...
Be7 {[%clk 0:02:58.2]} 6. h3 {[%clk 0:03:05.8]} 6... O-O {[%clk 0:02:57.2]} 7.
Bd3 {[%clk 0:03:07]} 7... c5 {[%clk 0:02:57.9]} 8. c3 {[%clk 0:03:08.4]} 8...
Nc6 {[%clk 0:02:58.9]} 9. a3 {[%clk 0:03:09]} 9... d5 {[%clk 0:02:59.9]} 10. O-O
{[%clk 0:03:07.9]} 10... Qc8 {[%clk 0:02:59.6]} 11. Ne5 {[%clk 0:03:04.6]} 11...
Nxe5 {[%clk 0:02:54.3]} 12. Bxe5 {[%clk 0:02:58.5]} 12... Ba6 {[%clk 0:02:54.5]}
13. Qe2 {[%clk 0:02:48.6]} 13... Bxd3 {[%clk 0:02:54.2]} 14. Qxd3 {[%clk
0:02:50.5]} 14... c4 {[%clk 0:02:51.1]} 15. Qc2 {[%clk 0:02:50.1]} 15... Nd7
{[%clk 0:02:51.7]} 16. Bg3 {[%clk 0:02:49.1]} 16... f5 {[%clk 0:02:52.3]} 17. f3
{[%clk 0:02:50.2]} 17... Bg5 {[%clk 0:02:43.9]} 18. Rae1 {[%clk 0:02:42.7]}
18... Qc6 {[%clk 0:02:40.3]} 19. e4 {[%clk 0:02:35.6]} 19... Bxd2 {[%clk
0:02:38]} 20. exd5 {[%clk 0:02:33.9]} 20... exd5 {[%clk 0:02:38.6]} 21. Qxd2
{[%clk 0:02:34.4]} 21... Rae8 {[%clk 0:02:39]} 22. Qf4 {[%clk 0:02:31.7]} 22...
g6 {[%clk 0:02:30.7]} 23. h4 {[%clk 0:02:23.8]} 23... Nf6 {[%clk 0:02:21.2]} 24.
Qg5 {[%clk 0:02:25.2]} 24... Rxe1 {[%clk 0:02:13.2]} 25. Rxe1 {[%clk 0:02:26]}
25... Re8 {[%clk 0:02:14.4]} 26. Rxe8+ {[%clk 0:02:23.6]} 26... Nxe8 {[%clk
0:02:16.3]} 27. Qe7 {[%clk 0:02:25.1]} 27... a6 {[%clk 0:01:41.8]} 28. Be5
{[%clk 0:02:26.1]} 28... Qb5 {[%clk 0:01:31.8]} 29. h5 {[%clk 0:02:18.4]} 29...
gxh5 {[%clk 0:01:25.8]} 30. Qe6+ {[%clk 0:02:19.8]} 30... Kf8 {[%clk 0:01:26.2]}
31. Qxf5+ {[%clk 0:02:18.1]} 31... Ke7 {[%clk 0:01:27.2]} 32. Qxh7+ {[%clk
0:02:18.7]} 32... Kd8 {[%clk 0:01:28]} 33. Qxh5 {[%clk 0:02:01.7]} 33... Qxb2
{[%clk 0:01:28.4]} 34. Qg5+ {[%clk 0:01:59.5]} 34... Kd7 {[%clk 0:01:25.9]} 35.
Qe3 {[%clk 0:01:54]} 35... Qxa3 {[%clk 0:01:26.1]} 36. f4 {[%clk 0:01:52.9]}
36... Qa1+ {[%clk 0:01:19.8]} 37. Kh2 {[%clk 0:01:53.7]} 37... Qd1 {[%clk
0:01:19.1]} 38. Qh3+ {[%clk 0:01:51.8]} 38... Ke7 {[%clk 0:01:18]} 39. f5 {[%clk
0:01:53.3]} 39... Qf1 {[%clk 0:00:55.2]} 40. Qh7+ {[%clk 0:01:51.6]} 40... Kd8
{[%clk 0:00:54.5]} 41. Qf7 {[%clk 0:00:57]} 41... a5 {[%clk 0:00:46.4]} 42.
Qxd5+ {[%clk 0:00:58]} 42... Ke7 {[%clk 0:00:46.4]} 43. Qe6+ {[%clk 0:00:51.9]}
43... Kf8 {[%clk 0:00:46.9]} 44. f6 {[%clk 0:00:52]} 44... Nxf6 {[%clk
0:00:41.8]} 45. Bxf6 {[%clk 0:00:53.9]} 45... Qf4+ {[%clk 0:00:38.9]} 46. Kh3
{[%clk 0:00:44.2]} 46... Qh6+ {[%clk 0:00:38.8]} 47. Kg3 {[%clk 0:00:43.4]}
47... Qg6+ {[%clk 0:00:38.6]} 48. Kf4 {[%clk 0:00:41.6]} 48... Qxg2 {[%clk
0:00:33]} 49. Qe7+ {[%clk 0:00:39]} 49... Kg8 {[%clk 0:00:34]} 50. Qe8+ {[%clk
0:00:39.8]} 50... Kh7 {[%clk 0:00:35.4]} 51. Qh8+ {[%clk 0:00:41.7]} 51... Kg6
{[%clk 0:00:36.6]} 52. Qg7+ {[%clk 0:00:43.3]} 1-0

[Event "*** Titled Tuesday Blitz"]
[Site "Chess.com"]
[Date "2018.01.02"]
[Round "1"]
[White "danir29"]
[Black "PowerThinking2650"]
[Result "1-0"]
[WhiteElo "2494"]
[BlackElo "2200"]
[TimeControl "180+2"]
[EndTime "13:08:50 PST"]
[Termination "danir29 won on time"]

1. d4 {[%clk 0:03:01.9]} 1... Nf6 {[%clk 0:03:00.7]} 2. Bf4 {[%clk 0:03:02.1]}
2... g6 {[%clk 0:03:01.7]} 3. e3 {[%clk 0:03:01.5]} 3... Bg7 {[%clk 0:03:03]} 4.
Nf3 {[%clk 0:03:00.3]} 4... O-O {[%clk 0:03:01.6]} 5. Be2 {[%clk 0:02:59.9]}
5... d6 {[%clk 0:03:02.6]} 6. h3 {[%clk 0:02:59.8]} 6... b6 {[%clk 0:03:03.5]}
7. a4 {[%clk 0:02:59.8]} 7... a6 {[%clk 0:02:58.9]} 8. O-O {[%clk 0:02:59.7]}
8... Bb7 {[%clk 0:02:59.9]} 9. c3 {[%clk 0:02:53.7]} 9... Nbd7 {[%clk
0:03:00.4]} 10. Bh2 {[%clk 0:02:54.6]} 10... Ne4 {[%clk 0:03:01]} 11. Nbd2
{[%clk 0:02:49.4]} 11... e5 {[%clk 0:02:52.7]} 12. Nxe4 {[%clk 0:02:46.7]} 12...
Bxe4 {[%clk 0:02:53]} 13. Nd2 {[%clk 0:02:48.2]} 13... Bb7 {[%clk 0:02:47.6]}
14. Bf3 {[%clk 0:02:49.1]} 14... Qc8 {[%clk 0:02:40.2]} 15. b4 {[%clk
0:02:39.8]} 15... h6 {[%clk 0:02:26.8]} 16. Re1 {[%clk 0:02:32.7]} 16... f5
{[%clk 0:02:25.9]} 17. Qb3+ {[%clk 0:02:31.4]} 17... Kh7 {[%clk 0:02:23.8]} 18.
dxe5 {[%clk 0:02:03.9]} 18... Nxe5 {[%clk 0:02:17.6]} 19. Bxe5 {[%clk
0:02:01.7]} 19... Bxe5 {[%clk 0:02:07.6]} 20. Rad1 {[%clk 0:02:00.8]} 20... Bg7
{[%clk 0:01:39.5]} 21. Qc4 {[%clk 0:01:41.8]} 21... b5 {[%clk 0:01:22.2]} 22.
axb5 {[%clk 0:01:34.6]} 22... axb5 {[%clk 0:01:22.6]} 23. Qxb5 {[%clk
0:01:13.9]} 23... Bxf3 {[%clk 0:01:20.4]} 24. Nxf3 {[%clk 0:01:15]} 24... Bxc3
{[%clk 0:01:20.8]} 25. Re2 {[%clk 0:01:16.5]} 25... Rb8 {[%clk 0:01:17.3]} 26.
Qc4 {[%clk 0:01:14.3]} 26... Bxb4 {[%clk 0:01:17.3]} 27. e4 {[%clk 0:01:12.8]}
27... fxe4 {[%clk 0:00:57.1]} 28. Rxe4 {[%clk 0:01:12.9]} 28... Qd7 {[%clk
0:00:45.7]} 29. Nd4 {[%clk 0:00:56.8]} 29... Bc5 {[%clk 0:00:38.6]} 30. Ne6
{[%clk 0:00:55]} 30... Bxf2+ {[%clk 0:00:31]} 31. Kh1 {[%clk 0:00:55.8]} 31...
Rf7 {[%clk 0:00:25.5]} 32. Qe2 {[%clk 0:00:35.9]} 32... Bb6 {[%clk 0:00:14.2]}
33. h4 {[%clk 0:00:36.5]} 33... Rg8 {[%clk 0:00:09.1]} 34. h5 {[%clk 0:00:37.2]}
34... Qe7 {[%clk 0:00:09.1]} 35. Rf1 {[%clk 0:00:25]} 35... Rxf1+ {[%clk
0:00:06.7]} 36. Qxf1 {[%clk 0:00:26.9]} 36... gxh5 {[%clk 0:00:07.2]} 37. Qf5+
{[%clk 0:00:27.2]} 1-0

[Event "*** Titled Tuesday Blitz"]
[Site "Chess.com"]
[Date "2018.01.02"]
[Round "1"]
[White "filali-oujda"]
[Black "gkchesstiger"]
[Result "1/2-1/2"]
[WhiteElo "2334"]
[BlackElo "2598"]
[TimeControl "180+2"]
[EndTime "13:08:58 PST"]
[Termination "Game drawn by agreement"]

1. e4 {[%clk 0:02:56.4]} 1... c5 {[%clk 0:03:00.3]} 2. Nc3 {[%clk 0:02:53.3]}
2... e6 {[%clk 0:02:57.2]} 3. g3 {[%clk 0:02:52.1]} 3... d5 {[%clk 0:02:57.6]}
4. exd5 {[%clk 0:02:52.4]} 4... exd5 {[%clk 0:02:58.4]} 5. d3 {[%clk 0:02:53.4]}
5... Nf6 {[%clk 0:02:54.5]} 6. Bg2 {[%clk 0:02:50.1]} 6... Bg4 {[%clk
0:02:51.5]} 7. Nge2 {[%clk 0:02:48.6]} 7... Nc6 {[%clk 0:02:43.6]} 8. Bg5 {[%clk
0:02:46.7]} 8... d4 {[%clk 0:02:43.5]} 9. Ne4 {[%clk 0:02:45]} 9... Be7 {[%clk
0:02:43.4]} 10. h3 {[%clk 0:02:40.5]} 10... Bf5 {[%clk 0:02:38.8]} 11. Bxf6
{[%clk 0:02:37.9]} 11... Bxf6 {[%clk 0:02:38.9]} 12. Nxf6+ {[%clk 0:02:36.6]}
12... Qxf6 {[%clk 0:02:39.1]} 13. O-O {[%clk 0:02:38.5]} 13... O-O {[%clk
0:02:39.5]} 14. Nf4 {[%clk 0:02:36.4]} 14... Rae8 {[%clk 0:02:37.6]} 15. Re1
{[%clk 0:02:30.8]} 15... Bd7 {[%clk 0:02:33.3]} 16. Qh5 {[%clk 0:02:21.9]} 16...
b6 {[%clk 0:02:32]} 17. Nd5 {[%clk 0:02:06.9]} 17... Qd6 {[%clk 0:02:29.4]} 18.
a3 {[%clk 0:02:03.3]} 18... h6 {[%clk 0:02:06.1]} 19. Kh2 {[%clk 0:01:45.2]}
19... Rxe1 {[%clk 0:02:02.8]} 20. Rxe1 {[%clk 0:01:43.2]} 20... Re8 {[%clk
0:02:02.9]} 21. Rxe8+ {[%clk 0:01:41.7]} 21... Bxe8 {[%clk 0:02:04]} 22. f4
{[%clk 0:01:41.7]} 22... Kf8 {[%clk 0:02:02.1]} 23. f5 {[%clk 0:01:38.5]} 23...
f6 {[%clk 0:01:58.8]} 24. Qe2 {[%clk 0:01:38.1]} 24... Qe5 {[%clk 0:01:57.1]}
25. Be4 {[%clk 0:01:19.4]} 25... Ne7 {[%clk 0:01:55.1]} 26. Qf3 {[%clk
0:01:02.3]} 26... Nxd5 {[%clk 0:01:54.5]} 27. Bxd5 {[%clk 0:01:00.3]} 27... Bd7
{[%clk 0:01:50.1]} 28. Be4 {[%clk 0:00:59.7]} 28... Ke7 {[%clk 0:01:46.9]} 29.
Kg2 {[%clk 0:01:00.6]} 29... Kd6 {[%clk 0:01:47]} 30. Qg4 {[%clk 0:01:00.2]}
30... g5 {[%clk 0:01:47.3]} 31. Qf3 {[%clk 0:00:51.1]} 31... a5 {[%clk
0:01:42.9]} 32. b3 {[%clk 0:00:48.2]} 32... a4 {[%clk 0:01:41.3]} 33. bxa4
{[%clk 0:00:47.9]} 33... Bxa4 {[%clk 0:01:40.9]} 34. Qd1 {[%clk 0:00:48.7]}
34... Kc7 {[%clk 0:01:36.4]} 35. Qb1 {[%clk 0:00:48.2]} 35... Bc6 {[%clk
0:01:35]} 36. Qe1 {[%clk 0:00:42]} 36... Bxe4+ {[%clk 0:01:35.1]} 37. dxe4
{[%clk 0:00:37.5]} 37... c4 {[%clk 0:01:36.2]} 38. Kf3 {[%clk 0:00:34.8]} 38...
h5 {[%clk 0:01:36.5]} 39. Qb4 {[%clk 0:00:33.7]} 39... g4+ {[%clk 0:01:37.1]}
40. hxg4 {[%clk 0:00:35.3]} 40... hxg4+ {[%clk 0:01:38]} 41. Kf2 {[%clk
0:00:36.9]} 41... b5 {[%clk 0:01:36.3]} 42. Qa5+ {[%clk 0:00:35.4]} 42... Kb7
{[%clk 0:01:37]} 43. a4 {[%clk 0:00:35.3]} 43... bxa4 {[%clk 0:01:22.4]} 44.
Qxe5 {[%clk 0:00:34.5]} 44... fxe5 {[%clk 0:01:22.9]} 45. f6 {[%clk 0:00:35.6]}
45... a3 {[%clk 0:01:24.3]} 46. f7 {[%clk 0:00:35.8]} 46... a2 {[%clk
0:01:25.5]} 47. f8=Q {[%clk 0:00:34.7]} 47... a1=Q {[%clk 0:01:25.9]} 48. Qb4+
{[%clk 0:00:34]} 48... Ka7 {[%clk 0:01:24.5]} 49. Qc5+ {[%clk 0:00:33.9]} 49...
Kb7 {[%clk 0:01:24.1]} 50. Qb5+ {[%clk 0:00:34.8]} 50... Ka7 {[%clk 0:01:24.5]}
51. Qc5+ {[%clk 0:00:23.4]} 51... Kb7 {[%clk 0:01:23.2]} 52. Qb5+ {[%clk
0:00:22.9]} 1/2-1/2

[Event "*** Titled Tuesday Blitz"]
[Site "Chess.com"]
[Date "2018.01.02"]
[Round "1"]
[White "Tash_Boy"]
[Black "Opening_Prep"]
[Result "1/2-1/2"]
[WhiteElo "2523"]
[BlackElo "2259"]
[TimeControl "180+2"]
[EndTime "13:08:59 PST"]
[Termination "Game drawn - insufficient material"]

1. e4 {[%clk 0:03:01.9]} 1... c6 {[%clk 0:02:59]} 2. d4 {[%clk 0:03:01.3]} 2...
d5 {[%clk 0:02:59.7]} 3. Nd2 {[%clk 0:03:02]} 3... dxe4 {[%clk 0:02:59.9]} 4.
Nxe4 {[%clk 0:03:03.9]} 4... Bf5 {[%clk 0:03:00.7]} 5. Ng3 {[%clk 0:03:05.3]}
5... Bg6 {[%clk 0:03:01.6]} 6. Nh3 {[%clk 0:03:06.9]} 6... Nf6 {[%clk
0:01:14.9]} 7. Nf4 {[%clk 0:03:06.1]} 7... e5 {[%clk 0:01:15.2]} 8. dxe5 {[%clk
0:03:06]} 8... Qa5+ {[%clk 0:01:15.7]} 9. Bd2 {[%clk 0:03:06.1]} 9... Qxe5+
{[%clk 0:01:16.5]} 10. Be2 {[%clk 0:03:06.1]} 10... Be7 {[%clk 0:01:15.8]} 11.
O-O {[%clk 0:03:01.9]} 11... O-O {[%clk 0:01:16.7]} 12. Nxg6 {[%clk 0:02:51.1]}
12... hxg6 {[%clk 0:01:17.4]} 13. Bc3 {[%clk 0:02:51.3]} 13... Qc7 {[%clk
0:01:17.9]} 14. Bf3 {[%clk 0:02:49.3]} 14... Nbd7 {[%clk 0:01:18.5]} 15. Re1
{[%clk 0:02:48.5]} 15... Rfe8 {[%clk 0:01:18.7]} 16. Qd2 {[%clk 0:02:45.6]}
16... Rad8 {[%clk 0:01:17.1]} 17. Rad1 {[%clk 0:02:38.3]} 17... Nb6 {[%clk
0:01:12.1]} 18. Qc1 {[%clk 0:02:36.7]} 18... Nbd5 {[%clk 0:01:04.8]} 19. Be5
{[%clk 0:02:29.2]} 19... Bd6 {[%clk 0:00:54.4]} 20. Bxd6 {[%clk 0:02:29.2]}
20... Rxe1+ {[%clk 0:00:54.9]} 21. Rxe1 {[%clk 0:02:29]} 21... Qxd6 {[%clk
0:00:55.2]} 22. c3 {[%clk 0:02:28.1]} 22... Re8 {[%clk 0:00:50.3]} 23. Rxe8+
{[%clk 0:02:26.4]} 23... Nxe8 {[%clk 0:00:51.1]} 24. Ne4 {[%clk 0:02:25.7]}
24... Qe7 {[%clk 0:00:51.9]} 25. Qd2 {[%clk 0:02:22.8]} 25... Nef6 {[%clk
0:00:52]} 26. Ng5 {[%clk 0:02:17.5]} 26... Qe5 {[%clk 0:00:49.8]} 27. h4 {[%clk
0:02:16.3]} 27... b5 {[%clk 0:00:45.7]} 28. g3 {[%clk 0:02:14.3]} 28... Kf8
{[%clk 0:00:45]} 29. Kg2 {[%clk 0:02:12.5]} 29... Ke7 {[%clk 0:00:45.2]} 30. a4
{[%clk 0:02:04.5]} 30... a6 {[%clk 0:00:46.1]} 31. axb5 {[%clk 0:02:02.9]} 31...
axb5 {[%clk 0:00:47.1]} 32. Qd1 {[%clk 0:02:01.5]} 32... Nd7 {[%clk 0:00:30.9]}
33. Qa1 {[%clk 0:01:56.1]} 33... f6 {[%clk 0:00:30.9]} 34. Qa3+ {[%clk
0:01:56.2]} 34... Qd6 {[%clk 0:00:29.9]} 35. Bxd5 {[%clk 0:01:21.5]} 35... Qxa3
{[%clk 0:00:21.9]} 36. bxa3 {[%clk 0:01:20.7]} 36... cxd5 {[%clk 0:00:22.8]} 37.
Nf3 {[%clk 0:01:21.5]} 37... Kd6 {[%clk 0:00:23.3]} 38. Nd4 {[%clk 0:01:21.3]}
38... Kc5 {[%clk 0:00:24.5]} 39. Ne6+ {[%clk 0:01:22.1]} 39... Kc4 {[%clk
0:00:25.3]} 40. Nxg7 {[%clk 0:01:23.2]} 40... Kxc3 {[%clk 0:00:25.3]} 41. g4
{[%clk 0:01:21.9]} 41... Ne5 {[%clk 0:00:21.3]} 42. h5 {[%clk 0:01:22]} 42...
Nxg4 {[%clk 0:00:21.7]} 43. hxg6 {[%clk 0:01:22.9]} 43... Ne5 {[%clk 0:00:22.9]}
44. Ne6 {[%clk 0:01:16.2]} 44... Nxg6 {[%clk 0:00:23.9]} 45. Kf3 {[%clk
0:01:17.3]} 45... Ne5+ {[%clk 0:00:24.4]} 46. Ke2 {[%clk 0:01:17.4]} 46... Nc4
{[%clk 0:00:25.4]} 47. Nc7 {[%clk 0:01:16.3]} 47... Nxa3 {[%clk 0:00:23.9]} 48.
Nxd5+ {[%clk 0:01:17.1]} 48... Kd4 {[%clk 0:00:25]} 49. Nxf6 {[%clk 0:01:18]}
49... b4 {[%clk 0:00:26]} 50. Kd2 {[%clk 0:01:15.5]} 50... b3 {[%clk 0:00:26.4]}
51. Kc1 {[%clk 0:01:16.2]} 51... Nc4 {[%clk 0:00:25.9]} 52. f4 {[%clk
0:01:15.4]} 52... Ke3 {[%clk 0:00:18.1]} 53. f5 {[%clk 0:01:12.6]} 53... Kf4
{[%clk 0:00:18.5]} 54. Nd5+ {[%clk 0:01:13]} 54... Kxf5 {[%clk 0:00:19.8]} 55.
Ne3+ {[%clk 0:01:13.9]} 55... Nxe3 {[%clk 0:00:16.7]} 56. Kb2 {[%clk 0:01:15.4]}
56... Nd5 {[%clk 0:00:16]} 57. Kxb3 {[%clk 0:01:17.3]} 1/2-1/2

[Event "*** Titled Tuesday Blitz"]
[Site "Chess.com"]
[Date "2018.01.02"]
[Round "1"]
[White "GM_Huschenbeth"]
[Black "Robert_Chessmood"]
[Result "0-1"]
[WhiteElo "2392"]
[BlackElo "2733"]
[TimeControl "180+2"]
[EndTime "13:09:05 PST"]
[Termination "Robert_Chessmood won by resignation"]

1. e4 {[%clk 0:03:01.5]} 1... c6 {[%clk 0:02:58.1]} 2. d4 {[%clk 0:03:02]} 2...
d5 {[%clk 0:02:59.6]} 3. e5 {[%clk 0:03:03.6]} 3... Bf5 {[%clk 0:03:00.3]} 4.
Nf3 {[%clk 0:03:05.2]} 4... e6 {[%clk 0:03:01.5]} 5. Be2 {[%clk 0:03:06.9]} 5...
Ne7 {[%clk 0:03:02.5]} 6. O-O {[%clk 0:03:08.4]} 6... h6 {[%clk 0:03:03.9]} 7.
a4 {[%clk 0:03:09.7]} 7... c5 {[%clk 0:03:02.3]} 8. dxc5 {[%clk 0:03:07]} 8...
Nec6 {[%clk 0:03:02]} 9. Be3 {[%clk 0:03:07.4]} 9... Nd7 {[%clk 0:02:58.3]} 10.
Nd4 {[%clk 0:02:57.9]} 10... Nxd4 {[%clk 0:02:56]} 11. Bxd4 {[%clk 0:02:59.8]}
11... Bxc5 {[%clk 0:02:55.5]} 12. Bxc5 {[%clk 0:02:58.2]} 12... Nxc5 {[%clk
0:02:57.4]} 13. Bb5+ {[%clk 0:02:59.6]} 13... Nd7 {[%clk 0:02:58.4]} 14. a5
{[%clk 0:03:01.5]} 14... O-O {[%clk 0:02:53.5]} 15. Re1 {[%clk 0:02:45.3]} 15...
Rc8 {[%clk 0:02:46.1]} 16. c3 {[%clk 0:02:43.6]} 16... Bxb1 {[%clk 0:02:40]} 17.
Rxb1 {[%clk 0:02:33.8]} 17... a6 {[%clk 0:02:37.7]} 18. Ba4 {[%clk 0:02:31.6]}
18... Qc7 {[%clk 0:02:32]} 19. Qd4 {[%clk 0:02:24.4]} 19... Rfd8 {[%clk
0:02:29.3]} 20. Ra1 {[%clk 0:02:19.6]} 20... Nb8 {[%clk 0:02:20.3]} 21. Bc2
{[%clk 0:02:14.1]} 21... Nc6 {[%clk 0:02:19.5]} 22. Qd3 {[%clk 0:02:15]} 22...
g6 {[%clk 0:02:15.9]} 23. Qe3 {[%clk 0:02:01]} 23... Kg7 {[%clk 0:02:12.2]} 24.
Qf4 {[%clk 0:02:02.6]} 24... Qe7 {[%clk 0:02:03.2]} 25. h4 {[%clk 0:01:41.9]}
25... d4 {[%clk 0:01:58]} 26. cxd4 {[%clk 0:01:40.8]} 26... Rxd4 {[%clk
0:01:50.8]} 27. Re4 {[%clk 0:01:42.3]} 27... Rcd8 {[%clk 0:01:42.7]} 28. Rae1
{[%clk 0:01:05]} 28... Rxe4 {[%clk 0:01:40.4]} 29. Rxe4 {[%clk 0:01:06.9]} 29...
Nxa5 {[%clk 0:01:33]} 30. h5 {[%clk 0:01:07.6]} 30... g5 {[%clk 0:01:30.7]} 31.
Qf3 {[%clk 0:01:08]} 31... Nc6 {[%clk 0:01:29.3]} 32. Bb1 {[%clk 0:00:55]} 32...
Nd4 {[%clk 0:01:19.9]} 33. Qc3 {[%clk 0:00:54.5]} 33... Qd7 {[%clk 0:01:12.2]}
34. Re1 {[%clk 0:00:22.9]} 34... Qc8 {[%clk 0:01:00.4]} 35. Qd3 {[%clk
0:00:21.1]} 35... Nf5 {[%clk 0:01:00.7]} 36. Qh3 {[%clk 0:00:13.4]} 36... Rd2
{[%clk 0:00:47.6]} 37. Bxf5 {[%clk 0:00:13]} 37... exf5 {[%clk 0:00:49.5]} 38.
e6 {[%clk 0:00:12.9]} 38... fxe6 {[%clk 0:00:48.5]} 39. Qe3 {[%clk 0:00:12.9]}
39... Rd5 {[%clk 0:00:37.5]} 40. Qxe6 {[%clk 0:00:11.5]} 40... Qxe6 {[%clk
0:00:37.5]} 41. Rxe6 {[%clk 0:00:13.4]} 41... Rb5 {[%clk 0:00:37.3]} 42. Re2
{[%clk 0:00:13.7]} 42... g4 {[%clk 0:00:37.3]} 43. g3 {[%clk 0:00:11.8]} 43...
Kf6 {[%clk 0:00:37.9]} 44. Kg2 {[%clk 0:00:08.3]} 44... Kg5 {[%clk 0:00:39.2]}
45. f4+ {[%clk 0:00:09.6]} 45... gxf3+ {[%clk 0:00:40.4]} 46. Kxf3 {[%clk
0:00:10.4]} 46... Rb3+ {[%clk 0:00:42]} 47. Kg2 {[%clk 0:00:11]} 47... Kxh5
{[%clk 0:00:42.4]} 48. Kh3 {[%clk 0:00:12.4]} 48... f4 {[%clk 0:00:40.2]} 0-1